Cogmind - Beta 16.1 @@@ ROGUE MODE // 2026.02.19 @ 20:26:24 Player: SunShine214 Result: Escaped! Performance ------------- Evolutions (9) 4500 Regions Visited (20) 4000 Robots Destroyed (150) 750 Value Destroyed (5955) 5955 Prototype IDs (32) 640 Alien Tech Used (0) 0 Bonus (5513) 5513 TOTAL SCORE: 21358 Bonus ------- High Alert Combat Kills 1037 Entered Garrisons 200 Used RIF Installer 500 Entered DSFs 500 Aligned with FarCom 300 Win 3000 Friendly Fire -24 Cogmind --------- Core Integrity 1577/1600 Matter 280/300 Energy 236/240 System Corruption 2% Temperature Cool (8) Movement Flying (33) Location To Epsilon Eridani Parts ------- > --- POWER (2) -------- Micro Antimatter Reactor Light Quantum Reactor > --- PROPULSION (8) --- Field Propulsion Array Q-thruster Impulse Thruster Array Impulse Thruster Array > --- UTILITY (11) ----- Experimental Power Amplifier Spectral Analyzer Advanced Signal Interpreter Core Analyzer Microactuators Advanced Reaction Control System Hacking Suite Improved Hacking Suite Advanced Hacking Suite Advanced Hacking Suite Advanced System Shield > --- WEAPON (4) ------- Advanced Datajack Plasma Sword > --- INVENTORY (5) ---- Light Antimatter Reactor Authchip [R/Combat] Enhanced Nova Cannon Rocket Array Peak State ------------ > --- POWER ------------ Micro Antimatter Reactor Light Quantum Reactor > --- PROPULSION ------- Field Propulsion Array Q-thruster Impulse Thruster Array Impulse Thruster Array > --- UTILITY ---------- Experimental Power Amplifier Spectral Analyzer Advanced Signal Interpreter Core Analyzer Microactuators Advanced Reaction Control System Hacking Suite Improved Hacking Suite Advanced Hacking Suite Advanced Hacking Suite Advanced System Shield > --- WEAPON ----------- Advanced Datajack Plasma Sword > --- INVENTORY -------- Light Antimatter Reactor Authchip [R/Combat] Enhanced Nova Cannon Rocket Array [Rating: 151] Favorites ----------- Power Reinforced Deuterium Engine Engine Reinforced Deuterium Engine Power Core Micro Fission Core Reactor Light Quantum Reactor Propulsion Improved Medium Treads Treads Improved Medium Treads Leg Carbon-fiber Leg Hover Unit Gravmag System Flight Unit Impulse Thruster Utility Small Storage Unit Device Weapon Cycler Storage Small Storage Unit Processor Core Analyzer Hackware Advanced Hacking Suite Protection Light Armor Plating Weapon XL Autogun Subcomponent Energy Gun Spread Laser Energy Cannon Enhanced Nova Cannon Ballistic Gun XL Autogun Subcomponent Ballistic Cannon Improved Light Cannon Launcher Compact Tesla Bomb Launcher Special Weapon Remote Datajack Impact Weapon Powered Hammer Slashing Weapon Plasma Sword Special Melee Weapon Advanced Datajack Build | -11 -10 -10 -9 -9 -9 -8 -8 -8 -7 -7 -7 -6 -6 -6 -5 -4 -3 -2 -2 -1 ------- Run | Yrd Mat Min Mat Min Exi Min Mat Gar Fac Low Low Fac Was Fac Fac Fac Res Res DSF Acc Slots Evolved 18 | . . . 2 . . . 2 . 2 . . 2 . . 2 2 2 2 . 2 Power 1 | . . . . . . . . . . . . . . . . 1 . . . . Propulsion 6 | . . . 1 . . . . . . . . 1 . . . 1 . 1 . 2 Utility 9 | . . . 1 . . . . . 2 . . 1 . . 2 . 2 1 . . Weapon 2 | . . . . . . . 2 . . . . . . . . . . . . . Parts Attached 149 | 7 3 1 16 2 1 8 5 22 15 2 . 1 . 13 15 18 6 10 . 4 Power 14 | 1 . . 2 . . 1 . 2 1 . . . . . 1 3 . 2 . 1 Engine 5 | 1 . . 1 . . 1 . 1 1 . . . . . . . . . . . Core 6 | . . . 1 . . . . 1 . . . . . . 1 3 . . . . Reactor 3 | . . . . . . . . . . . . . . . . . . 2 . 1 Propulsion 46 | 2 2 1 5 . . 4 . 9 5 . . . . 3 5 5 . 5 . . Treads 15 | 2 . . 2 . . . . 7 4 . . . . . . . . . . . Leg 10 | . . . 2 . . 4 . 1 1 . . . . 2 . . . . . . Wheel . | . . . . . . . . . . . . . . . . . . . . . Hover 2 | . . . . . . . . 1 . . . . . 1 . . . . . . Flight 19 | . 2 1 1 . . . . . . . . . . . 5 5 . 5 . . Utility 51 | 2 . . 3 1 1 3 1 5 7 2 . 1 . 6 5 4 5 2 . 3 Device 17 | 1 . . . 1 . . . . 4 . . . . 4 1 2 3 . . 1 Storage 4 | 1 . . . . 1 1 . . . 1 . . . . . . . . . . Processor 7 | . . . . . . . 1 . 2 . . . . . 2 . 2 . . . Hackware 12 | . . . . . . . . . 1 . . 1 . 2 2 2 . 2 . 2 Protection 11 | . . . 3 . . 2 . 5 . 1 . . . . . . . . . . Artifact . | . . . . . . . . . . . . . . . . . . . . . Weapon 38 | 2 1 . 6 1 . . 4 6 2 . . . . 4 4 6 1 1 . . Energy Gun 7 | 1 1 . 2 1 . . . . . . . . . . 1 1 . . . . Energy Cannon 3 | . . . . . . . . . . . . . . . . 3 . . . . Ballistic Gun 8 | 1 . . . . . . . 5 . . . . . 1 1 . . . . . Ballistic Cannon 2 | . . . 1 . . . . . . . . . . . 1 . . . . . Launcher 3 | . . . 1 . . . . . 1 . . . . . . . 1 . . . Special Weapon 1 | . . . . . . . . . 1 . . . . . . . . . . . Impact Weapon 8 | . . . 2 . . . 4 1 . . . . . . 1 . . . . . Slashing Weapon 5 | . . . . . . . . . . . . . . 3 . 2 . . . . Piercing Weapon . | . . . . . . . . . . . . . . . . . . . . . Special Melee Weapon 1 | . . . . . . . . . . . . . . . . . . 1 . . Unidentified Prototypes 9 | . . . . 1 . . . 1 1 . . . . . 2 1 3 . . . Corrupted Parts 3 | . . . . . . 2 . . . . . . . . 1 . . . . . System Corruption 22 | . . . . . . 18 . . . . . . . . 4 . . . . . Parts Lost 56 | . 5 1 4 . . 7 . 3 4 3 1 . 4 11 6 3 1 3 . . Power 5 | . 1 . 1 . . . . 1 . . . . . . 1 . 1 . . . Propulsion 24 | . 2 1 2 . . 3 . 1 2 . 1 . 1 3 4 2 . 2 . . Utility 16 | . 1 . . . . 2 . 1 2 1 . . 3 4 . 1 . 1 . . Weapon 11 | . 1 . 1 . . 2 . . . 2 . . . 4 1 . . . . . Highest Loss Streak 10 | . 5 1 3 . . 6 . 1 2 2 1 . 4 10 3 2 1 3 . . To Critical Strikes . | . . . . . . . . . . . . . . . . . . . . . Average Backups 6 | 1 4 7 7 8 6 4 4 7 7 7 7 8 8 4 4 4 5 4 5 4 Power . | . . 1 . . . . . . . . . . . . . . . . 1 1 Propulsion 1 | . 2 3 3 3 1 . . 1 1 . . . . . . . 1 . 1 . Utility 2 | . . . 1 2 2 2 1 2 2 4 4 5 5 2 2 . . . . 1 Weapon 2 | . 2 3 2 3 2 2 2 2 2 2 2 2 1 1 1 2 3 3 2 2 Tool/Special . | . . . . . . . . . . . . . . . . . . . . . Unused Backups 30 | . 3 . 3 . 3 . . 5 4 . . . 3 1 2 2 2 1 . 1 Power 1 | . 1 . . . . . . . . . . . . . . . . . . . Propulsion 11 | . 2 . 1 . 2 . . 3 2 . . . . . . . 1 . . . Utility 9 | . . . 1 . . . . 1 . . . . 2 1 2 1 . . . 1 Weapon 7 | . . . 1 . 1 . . 1 2 . . . 1 . . 1 . . . . Tool/Special 2 | . . . . . . . . . . . . . . . . . 1 1 . . Average Slot Usage (%) 76 | . 83 71 77 100 100 71 74 82 97 92 82 73 54 33 20 51 76 71 73 71 Engine 5 | . 9 . 5 11 11 11 9 6 7 7 7 6 4 . . . . . . . Treads 9 | . 18 . 6 11 11 1 . 13 21 23 21 13 9 . . . . . . . Leg 6 | . . . 13 22 22 22 18 11 . . . . . 2 . . . . . . Flight 3 | . 3 28 1 . . . . . . . . . . . 8 12 19 15 13 16 Device 5 | . 11 . . 3 11 . . . 5 15 15 13 9 10 . 2 11 15 13 12 Storage 6 | . 14 14 11 11 11 11 9 9 6 7 7 6 4 . . . . . . . Processor 6 | . . . . . . . 8 3 14 11 7 6 4 . 7 10 14 13 13 12 Hackware 3 | . . . . . . . . . . . . 6 4 3 . 15 14 15 21 17 Protection 7 | . . . 15 18 11 9 9 13 8 2 7 6 4 . . . . . . . Energy Gun 2 | . 13 14 6 13 22 7 . . . . . . . . . . . . . . Ballistic Gun 8 | . 14 14 . . . . . 13 22 15 7 6 4 1 . . . . . . Impact Weapon 5 | . . . 7 8 . 7 21 9 7 7 7 6 4 . . . . . . . Slashing Weapon 1 | . . . . . . . . . . . . . . 11 . 2 4 3 4 4 Peak Build Rating 151 | 9 9 6 15 23 25 25 31 66 61 55 42 41 41 42 43 90 129 134 132 151 Average Rating 49 | 5 7 5 10 17 23 17 25 50 54 49 40 40 29 24 18 65 115 119 131 145 On Entrance 40 | . 9 6 6 15 22 25 19 31 47 55 42 37 41 2 2 24 89 120 132 132 Avg Prop Armor Cover (%) 5 | . . . 6 7 8 10 . 2 4 . . . . 6 . 4 . 7 . . Naked Turns 100 | . . . . . . . . . . . . . 30 41 29 . . . . . Heaviest Build 51 | 13 13 8 24 24 22 24 33 51 43 43 40 40 40 18 17 30 38 36 27 37 Greatest Support 82 | 40 40 8 23 23 23 33 30 80 82 72 72 42 42 15 19 38 38 49 49 58 Greatest Overweight (x) 5 | . 3 . 4 1 . 5 1 3 . . . . 4 4 2 1 . . . . Average Overweight (x) . | . . . . . . . . . . . . . . . . . . . . . Largest Inventory Capacity 10 | 8 8 8 8 8 8 8 8 8 8 10 10 10 10 5 5 5 5 5 5 5 Average Capacity 7 | 6 8 8 8 8 8 8 8 8 7 8 10 10 8 5 5 5 5 5 5 5 Most Carried 9 | 5 8 8 8 8 8 8 8 8 8 8 7 9 9 5 5 5 5 5 5 5 Average Carried 6 | 1 4 7 7 8 7 7 7 7 7 7 7 8 7 4 4 4 4 4 4 4 Final Capacity 10 | 8 8 8 8 8 8 8 8 8 8 10 10 10 5 5 5 5 5 5 5 5 Final Carried 9 | 4 8 8 8 8 8 7 8 8 8 7 7 9 5 5 5 5 5 5 5 4 Class Distribution -------------------- 40% | Mutant 18% | Scavenger-Tank 9% | Hacker-Sprinter 9% | Hacker-Mutant 6% | Scavenger-Skirmisher 5% | Gunner 4% | Gladiator 3% | Skirmisher Dominant Class ---------------- Mutant | -10/Materials Mutant | -10/Mines Mutant | -9/Materials Mutant | -9/Mines Mutant | -9/Exiles Mutant | -8/Mines Mutant | -8/Materials Scavenger-Tank | -8/Garrison Scavenger-Tank | -7/Factory Mutant | -7/Lower Caves Mutant | -7/Lower Caves Mutant | -6/Factory Mutant | -6/Waste Gladiator | -6/Factory Mutant | -5/Factory Hacker-Mutant | -4/Factory Hacker-Sprinter | -3/Research Hacker-Mutant | -2/Research Hacker-Mutant | -2/DSF Hacker-Sprinter | -1/Access Resources | -11 -10 -10 -9 -9 -9 -8 -8 -8 -7 -7 -7 -6 -6 -6 -5 -4 -3 -2 -2 -1 ----------- Run | Yrd Mat Min Mat Min Exi Min Mat Gar Fac Low Low Fac Was Fac Fac Fac Res Res DSF Acc Matter Collected 4347 | 277 182 10 482 . . 160 64 1362 869 186 . . . 123 27 191 249 86 . 79 Remotely . | . . . . . . . . . . . . . . . . . . . . . Salvage Created 5536 | 123 304 . 670 63 . 250 64 1349 1473 209 . . . 123 75 191 284 261 . 97 Parts 304 | 7 25 . 42 . . 9 2 99 67 16 . . . 7 3 10 8 7 . 2 Haulers Intercepted 4 | . . . 2 . . . . . . . . . . . . . 1 1 . . Recyclers Shooed 7 | . 2 . . . . . . . 3 . . . . 2 . . . . . . Parts Field Recycled . | . . . . . . . . . . . . . . . . . . . . . Retrieved Matter . | . . . . . . . . . . . . . . . . . . . . . Parts Self-Destructed 18 | . . . . . . . . . . 17 1 . . . . . . . . . Prevented . | . . . . . . . . . . . . . . . . . . . . . Parts Restored . | . . . . . . . . . . . . . . . . . . . . . Kills | -11 -10 -10 -9 -9 -9 -8 -8 -8 -7 -7 -7 -6 -6 -6 -5 -4 -3 -2 -2 -1 ------- Run | Yrd Mat Min Mat Min Exi Min Mat Gar Fac Low Low Fac Was Fac Fac Fac Res Res DSF Acc Combat Hostiles Destroyed 107 | . 8 . 18 . . 7 1 34 20 9 . . . 2 4 2 . 1 . 1 Melee 11 | . . . . . . 1 . 2 1 1 . . . 2 . 2 . 1 . 1 Guns 75 | . 6 . 5 . . 5 . 31 18 8 . . . . 2 . . . . . Cannons 6 | . . . 4 . . . . . . . . . . . 2 . . . . . AOE 12 | . 2 . 9 . . . . . 1 . . . . . . . . . . . Classes Destroyed 20 | 2 4 . 6 . . 2 . 3 3 . . . . . . . . . . . Worker 10 | . 1 . 3 2 . . . . 4 . . . . . . . . . . . Builder 6 | . 1 . 3 1 . . . . 1 . . . . . . . . . . . Tunneler 4 | 2 . . . . . 1 . . . . . . . . . . . 1 . . Hauler 4 | . . . 2 . . . . . . . . . . . . . 1 1 . . Recycler 9 | 1 1 . 2 . . . . . 4 . . . . . . . 1 . . . Mechanic 1 | . . . 1 . . . . . . . . . . . . . . . . . Operator 5 | . . . 1 . . . 1 . 1 . . . . 1 . 1 . . . . Watcher 4 | . . . 1 . . . . . 1 . . . . . . . 1 1 . . Swarmer 37 | . 5 . 7 . . . . 12 . 9 . . . . 4 . . . . . Grunt 30 | . 3 . 5 . . 4 . 5 11 . . . . 1 . . . . . 1 Brawler 3 | . . . . . . 1 . 1 1 . . . . . . . . . . . Duelist 4 | . . . 1 . . 1 . 2 . . . . . . . . . . . . Protector 1 | . . . . . . . . . 1 . . . . . . . . . . . Sentry 14 | . . . 5 . . . . 6 . . . . . . . 2 . 1 . . Demolisher 1 | . . . . . . . . 1 . . . . . . . . . . . . Specialist 2 | . . . . . . . . . 2 . . . . . . . . . . . Hunter 4 | . . . . . . 1 1 2 . . . . . . . . . . . . Programmer 8 | . . . . . . . . 3 4 . . . . 1 . . . . . . Heavy 1 | . . . . . . . . . 1 . . . . . . . . . . . Behemoth 2 | . . . . . . . . 2 . . . . . . . . . . . . Best Kill Streak 7 | 3 7 . 7 3 . 3 1 6 6 3 . . . 1 4 1 2 2 . 1 Combat Bots Only 6 | . 3 . 6 . . 3 1 6 5 3 . . . 1 4 1 . 1 . 1 Max Kills in Single Turn 3 | 1 2 . 3 1 . 1 1 1 2 2 . . . 1 1 1 1 1 . 1 Gunslinging 1 | . . . . . . . . . 1 1 . . . . . . . . . . Exploded 2 | . 2 . 2 . . . . . 1 . . . . . . . . . . . Melee 1 | . . . . . . 1 . 1 1 1 . . . 1 . 1 . 1 . 1 Uniques/NPCs Destroyed . | . . . . . . . . . . . . . . . . . . . . . Combat | -11 -10 -10 -9 -9 -9 -8 -8 -8 -7 -7 -7 -6 -6 -6 -5 -4 -3 -2 -2 -1 -------- Run | Yrd Mat Min Mat Min Exi Min Mat Gar Fac Low Low Fac Was Fac Fac Fac Res Res DSF Acc Hostile Shots Fired 801 | . 75 8 86 . . 86 8 160 61 29 15 . 7 124 52 20 24 17 3 26 Missed 246 | . 20 4 29 . . 13 3 36 14 13 4 . 1 41 20 5 19 6 2 16 Hits 555 | . 55 4 57 . . 73 5 124 47 16 11 . 6 83 32 15 5 11 1 10 Melee 8 | . . . . . . 1 . . 1 . . . 6 . . . . . . . Projectile 547 | . 55 4 57 . . 72 5 124 46 16 11 . . 83 32 15 5 11 1 10 AOE 1 | . . . . . . . . 1 . . . . . . . . . . . . Critical Strikes 20 | . 1 . . . . 2 . . 3 . . . 3 7 1 2 . . . 1 Part Disruptions 2 | . . . 1 . . . . 1 . . . . . . . . . . . . Damage Taken 8892 | . 519 50 721 . . 1014 66 1721 1006 232 179 . 268 1412 544 362 177 308 91 222 Core 2122 | . 132 14 168 . . 218 23 178 76 15 33 . 182 606 193 119 21 30 91 23 Absorbed by Shields 103 | . . . . . . . . . 103 . . . . . . . . . . . Redirected to Shielding 126 | . . . . . . . 10 116 . . . . . . . . . . . . Regen/Repaired (Parts) 274 | . . . . . . . . . 122 . . . . . . . . 152 . . Core Remaining (%) 68 | 100 . 41 . . . 3 . 63 . . 82 . . 7 80 89 98 . 91 98 Volleys Fired 305 | 3 30 . 70 . . 14 . 88 70 21 . . . . 7 2 . . . . Largest 3 | 2 2 . 2 . . 2 . 3 3 3 . . . . 2 1 . . . . Hottest 130 | 60 60 . 70 . . 130 . 60 60 60 . . . . 80 120 . . . . Shots Fired 565 | 6 57 . 87 1 1 27 . 133 196 41 . . . . 14 2 . . . . Gun 496 | 6 57 . 34 1 1 27 . 133 189 41 . . . . 7 . . . . . Cannon 42 | . . . 33 . . . . . . . . . . . 7 2 . . . . Launcher 20 | . . . 20 . . . . . . . . . . . . . . . . . Special 7 | . . . . . . . . . 7 . . . . . . . . . . . Kinetic 443 | 3 30 . 33 . . . . 133 189 41 . . . . 14 . . . . . Thermal 71 | . 6 . 34 1 1 27 . . . . . . . . . 2 . . . . Explosive 20 | . . . 20 . . . . . . . . . . . . . . . . . Electromagnetic 24 | 3 21 . . . . . . . . . . . . . . . . . . . Robot Hit Streak 12 | 4 5 . 11 10 6 5 . 10 12 4 . . . . 2 4 . . . . Robot Miss Streak 7 | . 3 . 6 4 . 4 . 7 4 4 . . . . 2 . . . . . Penetration Max . | . . . . . . . . . . . . . . . . . . . . . Secondary Targets 13 | . 2 . . . . 2 . 2 4 3 . . . . . . . . . . Max Gunslinging Chain 1 | . 1 . . . . 1 . 1 1 1 . . . . . . . . . . Shots Hit Robots 467 | 4 36 . 59 4 1 33 3 106 133 18 . . . 21 6 13 5 17 . 8 Core Hits 260 | 3 14 . 60 1 2 39 . 56 51 9 . . . 9 4 4 2 5 . 1 Critical Kills 3 | . . . 2 . . . . . . . . . . . . 1 . . . . Critical Parts Destroyed 8 | . 1 . 3 . . . . 1 3 . . . . . . . . . . . Critical Strikes 29 | . 1 . 7 . . . . 1 3 . . . . 10 1 1 1 2 . 2 Meltdown 1 | . . . . . . . . . . . . . . . . 1 . . . . Destroy 1 | . 1 . . . . . . . . . . . . . . . . . . . Blast 3 | . . . 2 . . . . . . . . . . . 1 . . . . . Smash 9 | . . . 5 . . . . 1 3 . . . . . . . . . . . Sever 15 | . . . . . . . . . . . . . . 10 . . 1 2 . 2 Melee Attacks 189 | . . . 9 3 . 6 6 23 12 1 . 1 . 28 . 38 18 28 . 16 Impact 61 | . . . 9 3 . 6 6 23 12 1 . 1 . . . . . . . . Slashing 125 | . . . . . . . . . . . . . . 28 . 38 18 28 . 13 Piercing . | . . . . . . . . . . . . . . . . . . . . . Sneak Attacks 36 | . . . 8 3 . 1 . . 9 . . . . 6 . . 3 3 . 3 Combat Hostiles 3 | . . . . . . . . . . . . . . . . . . . . 3 Follow-up Attacks 7 | . . . . . . . . 3 . . . . . 4 . . . . . . Damage Inflicted 14370 | 60 548 . 1960 230 24 670 128 3953 3400 393 . . . 550 192 547 466 993 . 256 Guns 7886 | 54 478 . 335 8 24 377 . 3583 2629 332 . . . . 66 . . . . . Cannons 632 | . . . 417 . . . . . . . . . . . 126 89 . . . . Explosions 734 | . 61 . 673 . . . . . . . . . . . . . . . . . Melee 5075 | . . . 532 222 . 288 128 350 771 61 . . . 550 . 458 466 993 . 256 Ramming 43 | 6 9 . 3 . . 5 . 20 . . . . . . . . . . . . Kinetic 7443 | 14 276 . 417 . . . . 3583 2629 332 . . . . 192 . . . . . Thermal 939 | . 106 . 335 8 24 377 . . . . . . . . . 89 . . . . Explosive 673 | . . . 673 . . . . . . . . . . . . . . . . . Electromagnetic 197 | 40 157 . . . . . . . . . . . . . . . . . . . Impact 2352 | . . . 532 222 . 288 128 350 771 61 . . . . . . . . . . Slashing 2723 | . . . . . . . . . . . . . . 550 . 458 466 993 . 256 Piercing . | . . . . . . . . . . . . . . . . . . . . . Highest Corruption 19 | . . . 1 1 1 19 . . 1 1 1 . 7 7 5 . . . . 2 Average Corruption 3 | . . . 1 1 1 11 . . 1 1 1 . 7 5 4 . . . . 1 Corruption Purged 3 | . . . . . . . . . . . . . . 3 . . . . . . Corruption Blocked . | . . . . . . . . . . . . . . . . . . . . . Effects 69 | . . . 2 1 3 18 . . 9 4 2 . 3 20 7 . . . . . Message Errors 15 | . . . . . . 3 . . . 1 . . 2 6 3 . . . . . Matter Fused 13 | . . . . . 1 4 . . 5 . . . . 3 . . . . . . Heat Flow Errors 7 | . . . . . . 4 . . . 1 . . . 2 . . . . . . Energy Discharges 6 | . . . . . . 1 . . 1 . 1 . . 2 1 . . . . . Parts Rejected 2 | . . . . . . 1 . . . . . . . . 1 . . . . . Parts Fused 2 | . . . . . . . . . 1 1 . . . . . . . . . . Data Loss (minor) 14 | . . . 1 . . 3 . . 2 1 . . 1 5 1 . . . . . Data Loss (major) 4 | . . . . . . . . . . . 1 . . 2 1 . . . . . Misfires 3 | . . . 1 1 1 . . . . . . . . . . . . . . . Alerts 2 | . . . . . 1 1 . . . . . . . . . . . . . . Weapon Failures 1 | . . . . . . 1 . . . . . . . . . . . . . . Overload Shots . | . . . . . . . . . . . . . . . . . . . . . Overflow Damage 1021 | . . . 204 137 . 77 29 97 342 . . . . 33 17 . 85 . . . Projectiles 17 | . . . . . . . . . . . . . . . 17 . . . . . Explosions 8 | . . . 8 . . . . . . . . . . . . . . . . . Melee 996 | . . . 196 137 . 77 29 97 342 . . . . 33 . . 85 . . . Knockbacks 11 | . 1 . 5 2 . . 1 . 1 . . . . . 1 . . . . . Impact 7 | . 1 . 2 2 . . 1 . 1 . . . . . . . . . . . Kinetic 4 | . . . 3 . . . . . . . . . . . 1 . . . . . Secondary . | . . . . . . . . . . . . . . . . . . . . . Self-Inflicted Damage 88 | . . . 68 . . . . 20 . . . . . . . . . . . . Shots 3 | . . . 3 . . . . . . . . . . . . . . . . . Rammed 4 | 2 1 . 1 . . . . . . . . . . . . . . . . . Targets Rammed 9 | 2 2 . 1 . . 4 . . . . . . . . . . . . . . Kicked 4 | . . . . . . 4 . . . . . . . . . . . . . . Crushed 1 | . 1 . . . . . . . . . . . . . . . . . . . Highest Temperature 535 | . 27 . 137 26 28 535 . 454 429 241 . . . 252 . 88 . . . 3 Average Temperature 125 | . 12 . 42 16 18 220 . 142 126 75 . . . 120 . 48 . . . 2 Received Heat Transfer 2204 | . 144 30 210 . . 513 . 276 233 . 24 . . 504 99 81 . 63 . 27 Effects 25 | . . . . . . 10 . 8 7 . . . . . . . . . . . Shutdowns 6 | . . . . . . 4 . 1 1 . . . . . . . . . . . Energy Bleed 3 | . . . . . . 1 . . 2 . . . . . . . . . . . Interference 8 | . . . . . . 3 . 5 . . . . . . . . . . . . Short Circuit 1 | . . . . . . 1 . . . . . . . . . . . . . . Damage (minor) 3 | . . . . . . 1 . 2 . . . . . . . . . . . . Damage (major) 4 | . . . . . . . . . 4 . . . . . . . . . . . Siege Activations . | . . . . . . . . . . . . . . . . . . . . . Martial Activations . | . . . . . . . . . . . . . . . . . . . . . Shielding Activations . | . . . . . . . . . . . . . . . . . . . . . Robots Disrupted . | . . . . . . . . . . . . . . . . . . . . . Combat Hostiles . | . . . . . . . . . . . . . . . . . . . . . Robots Corrupted 13 | . . . 3 2 . 1 2 1 4 . . . . . . . . . . . Combat Hostiles 3 | . . . . . . 1 1 1 . . . . . . . . . . . . Parts Fried 21 | . . . 3 7 . 1 2 1 7 . . . . . . . . . . . Impact Corruptions 39 | . . . 9 6 . 4 4 6 10 . . . . . . . . . . . Robots Melted 1 | . . . . . . . . . . . . . . . . 1 . . . . Combat Hostiles . | . . . . . . . . . . . . . . . . . . . . . Parts Melted 3 | . . . 1 . . . . . . . . . . . . 2 . . . . Heat Transferred 1209 | . 150 . 470 10 30 475 . . . . . . . . . 74 . . . . Parts Sabotaged . | . . . . . . . . . . . . . . . . . . . . . Parts Stolen . | . . . . . . . . . . . . . . . . . . . . . Parts Stripped . | . . . . . . . . . . . . . . . . . . . . . Power Chain Reactions 1 | . 1 . . . . . . . . . . . . . . . . . . . Alert | -11 -10 -10 -9 -9 -9 -8 -8 -8 -7 -7 -7 -6 -6 -6 -5 -4 -3 -2 -2 -1 ------- Run | Yrd Mat Min Mat Min Exi Min Mat Gar Fac Low Low Fac Was Fac Fac Fac Res Res DSF Acc Maximum Alert Level 5 | . . . 1 . . . . 5 3 . . . . . . . . . . . Low Security (%) 59 | 100 100 100 85 100 . 100 100 10 . . . 100 100 100 100 100 100 100 100 100 Level 1 5 | . . . 14 . . . . 18 . . . . . . . . . . . . Level 2 2 | . . . . . . . . 10 . . . . . . . . . . . . Level 3 24 | . . . . . . . . 24 100 . . . . . . . . . . . Level 4 5 | . . . . . . . . 27 . . . . . . . . . . . . Level 5 1 | . . . . . . . . 8 . . . . . . . . . . . . High Security . | . . . . . . . . . . . . . . . . . . . . . Max Security . | . . . . . . . . . . . . . . . . . . . . . Peak Influence 1730 | 5 117 47 248 63 . 50 34 1730 907 . . 170 15 30 90 47 92 41 22 45 Initial 907 | . . 37 18 58 . . . 22 907 . . 170 15 . . 39 2 41 7 12 Average 364 | . 46 26 161 50 . 12 2 850 796 . . 106 3 1 30 10 33 6 13 4 Influence Increases 4634 | 15 237 30 656 20 . 175 53 1738 561 200 . 15 . 86 250 161 200 103 15 119 Destroy 0b10 Robot/C 2120 | . 160 . 360 . . 140 20 680 380 180 . . . 40 80 40 . 20 . 20 Destroy 0b10 Robot/NC 220 | 15 15 . 65 15 . 5 5 . 60 . . . . 5 . 5 15 15 . . Destroy Leader 376 | . 30 . 106 . . 30 10 30 92 20 . . . 10 10 20 4 14 . . Successful Hack 171 | . . . . 5 . . 16 14 12 . . . . . . 33 43 12 . 36 Disable Machine 120 | . . . 30 . . . . 30 15 . . 15 . . 15 15 . . . . Anti-Garrison Action 700 | . . . . . . . . 700 . . . . . . . . . . . . Destroy Structure 267 | . 2 . 65 . . . 2 74 2 . . . . 1 10 48 18 27 . 18 Partial Spotted 60 | . . . . . . . . . . . . . . . 15 . 30 15 . . Lose Combat Pursuer 600 | . 30 30 30 . . . . 210 . . . . . 30 120 . 90 . 15 45 Influence Decreases 4622 | 15 140 80 551 144 28 175 19 42 1473 620 126 242 45 86 170 236 131 167 3 129 Entered New Map 1648 | . . 60 29 94 28 . . 12 823 304 76 102 30 . . 41 3 33 3 10 Time Decay 2558 | 15 90 10 482 50 . 125 19 . 610 286 40 140 15 55 120 175 108 134 . 84 Lost Part 370 | . 50 10 40 . . 50 . 30 40 30 10 . . 30 50 20 10 . . . Lost Ally 46 | . . . . . . . . . . . . . . 1 . . 10 . . 35 Squads Dispatched 27 | . 1 . 2 . . . 1 . 9 . . . . 5 1 4 2 1 . 1 Investigation 5 | . . . 2 . . . . . . . . . . 1 1 . 1 . . . Extermination 11 | . . . . . . . . . 4 . . . . 2 . 2 1 1 . 1 Reinforcement 9 | . 1 . . . . . 1 . 3 . . . . 2 . 2 . . . . Assault 2 | . . . . . . . . . 2 . . . . . . . . . . . Garrison . | . . . . . . . . . . . . . . . . . . . . . Intercept . | . . . . . . . . . . . . . . . . . . . . . Searches Triggered . | . . . . . . . . . . . . . . . . . . . . . Construction Impeded . | . . . . . . . . . . . . . . . . . . . . . Haulers Reinforced . | . . . . . . . . . . . . . . . . . . . . . Active Scanning Responses . | . . . . . . . . . . . . . . . . . . . . . Cargo Convoy Interrupts . | . . . . . . . . . . . . . . . . . . . . . Stealth | -11 -10 -10 -9 -9 -9 -8 -8 -8 -7 -7 -7 -6 -6 -6 -5 -4 -3 -2 -2 -1 --------- Run | Yrd Mat Min Mat Min Exi Min Mat Gar Fac Low Low Fac Was Fac Fac Fac Res Res DSF Acc Distress Signals 9 | . . . 1 . . . 1 . . . . . . 1 3 . 1 . . 2 Communications Jammed 17 | . . . . . . . . . . . . . . . . . 17 . . . Distress Signals 17 | . . . . . . . . . . . . . . . . . 17 . . . Times Spotted 225 | . 15 2 26 . . 7 3 52 30 9 1 . 6 13 21 4 19 1 2 14 Peak Tracking Total 10 | . 5 2 7 . . 4 2 6 5 3 1 . 6 7 9 3 10 1 1 6 Tactical Retreats 27 | . 2 1 2 . . . . 13 . . . . . 2 2 . 3 . 1 1 Traps | -11 -10 -10 -9 -9 -9 -8 -8 -8 -7 -7 -7 -6 -6 -6 -5 -4 -3 -2 -2 -1 ------- Run | Yrd Mat Min Mat Min Exi Min Mat Gar Fac Low Low Fac Was Fac Fac Fac Res Res DSF Acc Traps Triggered 24 | . 4 . 1 . . . . 4 2 . . 1 . 3 1 6 . . 2 . Indirectly . | . . . . . . . . . . . . . . . . . . . . . Trap Hack Attempts . | . . . . . . . . . . . . . . . . . . . . . Triggered . | . . . . . . . . . . . . . . . . . . . . . Disarmed . | . . . . . . . . . . . . . . . . . . . . . Reprogrammed . | . . . . . . . . . . . . . . . . . . . . . Reused . | . . . . . . . . . . . . . . . . . . . . . Traps Extracted . | . . . . . . . . . . . . . . . . . . . . . Installed . | . . . . . . . . . . . . . . . . . . . . . Triggered . | . . . . . . . . . . . . . . . . . . . . . Most Traps Carried 1 | . . . 1 . . . . . . . . . . . . . . . . . Machines | -11 -10 -10 -9 -9 -9 -8 -8 -8 -7 -7 -7 -6 -6 -6 -5 -4 -3 -2 -2 -1 ---------- Run | Yrd Mat Min Mat Min Exi Min Mat Gar Fac Low Low Fac Was Fac Fac Fac Res Res DSF Acc Machines Disabled 16 | . . . 2 . . . . 10 1 . . 1 . . 1 1 . . . . Max in Single Turn 2 | . . . 2 . . . . 2 1 . . 1 . . 1 1 . . . . Garrison Access 6 | . . . . . . . . . . . . . . . 1 . 2 1 . 2 Garrison Relay 6 | . . . . . . . . 6 . . . . . . . . . . . . Phase Generator 1 | . . . . . . . . 1 . . . . . . . . . . . . Machines Repaired . | . . . . . . . . . . . . . . . . . . . . . Machines Dismantled . | . . . . . . . . . . . . . . . . . . . . . Machines Sabotaged . | . . . . . . . . . . . . . . . . . . . . . Overloaded Fab Kills . | . . . . . . . . . . . . . . . . . . . . . Hacking | -11 -10 -10 -9 -9 -9 -8 -8 -8 -7 -7 -7 -6 -6 -6 -5 -4 -3 -2 -2 -1 --------- Run | Yrd Mat Min Mat Min Exi Min Mat Gar Fac Low Low Fac Was Fac Fac Fac Res Res DSF Acc Machines Accessed 51 | . . . 4 1 1 . 2 2 6 . . 1 . 3 4 10 7 5 . 5 Terminals 26 | . . . 3 1 . . . 2 4 . . . . 3 1 5 3 1 . 3 Fabricators 5 | . . . . . . . . . . . . 1 . . 2 2 . . . . Repair Stations 4 | . . . . . . . . . 1 . . . . . . . . 3 . . Recycling Units 4 | . . . 1 . . . . . . . . . . . . 2 1 . . . Scanalyzers 4 | . . . . . . . 1 . 1 . . . . . . 1 1 . . . Garrison Access 7 | . . . . . . . 1 . . . . . . . 1 . 2 1 . 2 Total Hacks 102 | . . . 9 3 1 . 3 4 12 . . 1 . 7 6 24 13 10 . 9 Successful 53 | . . . 1 1 1 . 2 1 5 . . 1 . 1 1 16 7 9 . 7 Failed 48 | . . . 8 2 . . 1 3 6 . . . . 6 5 8 6 1 . 2 Catastrophic 11 | . . . 2 . . . . 1 3 . . . . 2 2 . 1 . . . Database Lockouts 1 | . . . . . . . . . 1 . . . . . . . . . . . Manual 28 | . . . 8 . 1 . . . 1 . . . . 3 . 8 7 . . . Terminals 59 | . . . 8 3 . . . 4 6 . . . . 7 1 15 7 1 . 7 Fabricators 7 | . . . . . . . . . . . . 1 . . 4 2 . . . . Repair Stations 10 | . . . . . . . . . 2 . . . . . . . . 8 . . Recycling Units 6 | . . . 1 . . . . . . . . . . . . 4 1 . . . Scanalyzers 11 | . . . . . . . 2 . 4 . . . . . . 3 2 . . . Garrison Access 8 | . . . . . . . 1 . . . . . . . 1 . 3 1 . 2 Terminal Hacks 21 | . . . . 1 1 . . 1 . . . . . 1 . 10 1 1 . 5 Record 5 | . . . . . . . . . . . . . . . . 2 . . . 3 Part Schematic 1 | . . . . . . . . . . . . . . . . 1 . . . . Open Door 1 | . . . . . . . . . . . . . . . . . . . . 1 Open DSF 2 | . . . . . . . . . . . . . . . . 1 . 1 . . Level Access Points 3 | . . . . . . . . . . . . . . . . 1 1 . . 1 Branch Access Points 1 | . . . . . . . . . . . . . . . . 1 . . . . Emergency Access Points 1 | . . . . . . . . 1 . . . . . . . . . . . . Alert Level 1 | . . . . . . . . . . . . . . . . 1 . . . . Unreport Threat 1 | . . . . . . . . . . . . . . . . 1 . . . . Registered Components 2 | . . . . . . . . . . . . . . 1 . 1 . . . . Zone Layout 2 | . . . . 1 . . . . . . . . . . . 1 . . . . Proto ID Catalog 1 | . . . . . 1 . . . . . . . . . . . . . . . Fabricator Hacks 3 | . . . . . . . . . . . . 1 . . . 2 . . . . Network Status 1 | . . . . . . . . . . . . . . . . 1 . . . . Build 2 | . . . . . . . . . . . . 1 . . . 1 . . . . Repair Station Hacks 9 | . . . . . . . . . 2 . . . . . . . . 7 . . Scan Component 5 | . . . . . . . . . 1 . . . . . . . . 4 . . Repair 4 | . . . . . . . . . 1 . . . . . . . . 3 . . Recycling Unit Hacks 4 | . . . 1 . . . . . . . . . . . . 2 1 . . . Retrieve Matter 1 | . . . . . . . . . . . . . . . . 1 . . . . Retrieve Components 3 | . . . 1 . . . . . . . . . . . . 1 1 . . . Scanalyzer 7 | . . . . . . . 1 . 3 . . . . . . 2 1 . . . Retrieve Study 7 | . . . . . . . 1 . 3 . . . . . . 2 1 . . . Garrison Access Hacks 8 | . . . . . . . 1 . . . . . . . 1 . 3 1 . 2 Unlock Access 1 | . . . . . . . 1 . . . . . . . . . . . . . Seal Access 6 | . . . . . . . . . . . . . . . 1 . 2 1 . 2 Coupler Status 1 | . . . . . . . . . . . . . . . . . 1 . . . Unauthorized Hacks 1 | . . . . . . . . . . . . . . . . . 1 . . . Terminals 1 | . . . . . . . . . . . . . . . . . 1 . . . Assimilate 1 | . . . . . . . . . . . . . . . . . 1 . . . Fabricators . | . . . . . . . . . . . . . . . . . . . . . Repair Stations . | . . . . . . . . . . . . . . . . . . . . . Recycling Units . | . . . . . . . . . . . . . . . . . . . . . Scanalyzers . | . . . . . . . . . . . . . . . . . . . . . Garrison Access . | . . . . . . . . . . . . . . . . . . . . . Data Cores Recovered . | . . . . . . . . . . . . . . . . . . . . . Used . | . . . . . . . . . . . . . . . . . . . . . Hacking Detections 32 | . . . 3 . . . 2 2 4 . . . . 3 3 4 6 2 . 3 Full Trace Events 7 | . . . 3 . . . . 1 . . . . . 1 1 . 1 . . . Feedback Events . | . . . . . . . . . . . . . . . . . . . . . Feedback Blocked . | . . . . . . . . . . . . . . . . . . . . . Robot Schematics Acquired . | . . . . . . . . . . . . . . . . . . . . . Robots Built 1 | . . . . . . . . . . . . 1 . . . . . . . . Authchips . | . . . . . . . . . . . . . . . . . . . . . Time 81 | . . . . . . . . . . . . 81 . . . . . . . . Total Robot Build Rating 1 | . . . . . . . . . . . . 1 . . . . . . . . Part Schematics Acquired 1 | . . . . . . . . . . . . . . . . 1 . . . . Parts Built 2 | . . . . . . . . . . . . . . . . 2 . . . . Authchips . | . . . . . . . . . . . . . . . . . . . . . Time 46 | . . . . . . . . . . . . . . . . 46 . . . . Total Part Build Rating 18 | . . . . . . . . . . . . . . . . 18 . . . . Part Studies Acquired 7 | . . . . . . . 1 . 3 . . . . . . 2 1 . . . Parts Repaired 4 | . . . . . . . . . 1 . . . . . . . . 3 . . Time 208 | . . . . . . . . . 13 . . . . . . . . 195 . . Parts Recycled . | . . . . . . . . . . . . . . . . . . . . . Recycled Matter . | . . . . . . . . . . . . . . . . . . . . . Retrieved Matter . | . . . . . . . . . . . . . . . . . . . . . Retrieved Components 14 | . . . 10 . . . . . . . . . . . . 2 2 . . . Parts Scanalyzed . | . . . . . . . . . . . . . . . . . . . . . Part Schematics Acquired . | . . . . . . . . . . . . . . . . . . . . . Parts Damaged . | . . . . . . . . . . . . . . . . . . . . . Bothacking | -11 -10 -10 -9 -9 -9 -8 -8 -8 -7 -7 -7 -6 -6 -6 -5 -4 -3 -2 -2 -1 ------------ Run | Yrd Mat Min Mat Min Exi Min Mat Gar Fac Low Low Fac Was Fac Fac Fac Res Res DSF Acc Used RIF Installer 1 | . . . . . . . . 1 . . . . . . . . . . . . Robots Hacked 4 | . . . . . . . . . 1 . . . . . . . . . . 3 Non-combat . | . . . . . . . . . . . . . . . . . . . . . Combat 4 | . . . . . . . . . 1 . . . . . . . . . . 3 Robot Hacks Applied 6 | . . . . . . . . . 3 . . . . . . . . . . 3 scatter_targeting 1 | . . . . . . . . . . . . . . . . . . . . 1 link_complan 1 | . . . . . . . . . 1 . . . . . . . . . . . disable_weapons 1 | . . . . . . . . . 1 . . . . . . . . . . . go_dormant 1 | . . . . . . . . . 1 . . . . . . . . . . . overwrite_iff 1 | . . . . . . . . . . . . . . . . . . . . 1 formatsys_high 1 | . . . . . . . . . . . . . . . . . . . . 1 Relay Couplers Released 25 | . . . . . . . . 21 . . . . . . . . 2 2 . . Machine Destruction 25 | . . . . . . . . 21 . . . . . . . . 2 2 . . Attached 3 | . . . . . . . . . 1 . . . . . . . . 2 . . Fabnet Peak Effective % . | . . . . . . . . . . . . . . . . . . . . . Robots Rewired . | . . . . . . . . . . . . . . . . . . . . . Allies Hacked . | . . . . . . . . . . . . . . . . . . . . . Hacks Repelled . | . . . . . . . . . . . . . . . . . . . . . Allies | -11 -10 -10 -9 -9 -9 -8 -8 -8 -7 -7 -7 -6 -6 -6 -5 -4 -3 -2 -2 -1 -------- Run | Yrd Mat Min Mat Min Exi Min Mat Gar Fac Low Low Fac Was Fac Fac Fac Res Res DSF Acc Total Allies 16 | . . . . . . . . . . . . 1 . 12 . . 1 . . 2 Largest Group 4 | . . . . . . . . . . . . 1 1 4 . . 1 . . 1 Highest-Rated Group 90 | . . . . . . . . . . . . 10 10 90 . . 45 . . 58 Highest-Rated Ally 58 | . . . . . . . . . . . . 10 10 31 . . 45 . . 58 Total Orders 1 | . . . . . . . . . . . . 1 . . . . . . . . STAY 1 | . . . . . . . . . . . . 1 . . . . . . . . Ally Attacks 16 | . . . . . . . . . . . . . . 11 . . . . . 5 Total Damage 333 | . . . . . . . . . . . . . . 151 . . . . . 182 Kills . | . . . . . . . . . . . . . . . . . . . . . Allies Corrupted . | . . . . . . . . . . . . . . . . . . . . . Allies Melted 1 | . . . . . . . . . . . . . . 1 . . . . . . Intel | -11 -10 -10 -9 -9 -9 -8 -8 -8 -7 -7 -7 -6 -6 -6 -5 -4 -3 -2 -2 -1 ------- Run | Yrd Mat Min Mat Min Exi Min Mat Gar Fac Low Low Fac Was Fac Fac Fac Res Res DSF Acc Active Infowar (turns) 2706 | 14 214 . . 36 286 32 183 624 . . . . . . . . 226 553 39 499 Optics 2124 | . . . . . . . 183 624 . . . . . . . . 226 553 39 499 Sensors 354 | . . . . 36 286 32 . . . . . . . . . . . . . . Terrain 228 | 14 214 . . . . . . . . . . . . . . . . . . . Jamming 709 | . . . . . . . . . . . . . . . . . 84 553 39 33 Robot Analysis Total . | . . . . . . . . . . . . . . . . . . . . . Derelict Logs Recovered 1 | . . . . 1 . . . . . . . . . . . . . . . . Drone Launches . | . . . . . . . . . . . . . . . . . . . . . Drone Recoveries . | . . . . . . . . . . . . . . . . . . . . . Exploration | -11 -10 -10 -9 -9 -9 -8 -8 -8 -7 -7 -7 -6 -6 -6 -5 -4 -3 -2 -2 -1 ------------- Run | Yrd Mat Min Mat Min Exi Min Mat Gar Fac Low Low Fac Was Fac Fac Fac Res Res DSF Acc Turns Passed 11064 | 111 273 36 1247 105 286 463 189 2106 1988 620 90 280 112 744 380 664 279 553 39 499 Spaces Moved 7733 | 56 142 92 644 60 234 299 87 1203 1086 371 58 123 111 511 735 648 486 364 85 338 Core 481 | 5 14 . 34 . . 2 . . . . . . 61 309 56 . . . . . Treads 2709 | 51 70 . 114 . . . . 786 1086 371 58 123 50 . . . . . . . Legs 1630 | . . . 434 60 234 297 87 416 . . . . . 102 . . . . . . Wheels . | . . . . . . . . . . . . . . . . . . . . . Hover 101 | . . . . . . . . 1 . . . . . 100 . . . . . . Flight 2812 | . 58 92 62 . . . . . . . . . . . 679 648 486 364 85 338 Fastest Speed 31 | 50 37 37 34 120 120 120 120 120 152 158 157 157 50 50 32 31 31 31 37 33 Average Speed 105 | 150 109 37 155 156 120 125 148 150 157 158 157 157 100 112 39 34 31 33 37 33 Slowest Speed 300 | 160 200 37 250 190 120 300 190 280 165 158 158 157 250 250 205 120 31 42 37 33 Overloaded Moves . | . . . . . . . . . . . . . . . . . . . . . Propulsion Burnouts . | . . . . . . . . . . . . . . . . . . . . . Robots Hopped 22 | . 3 3 1 . . . . . . . . . . . 7 . 1 . . 7 Potential Cave-ins 1 | . . . . . . . . . . . . . . . . 1 . . . . Cave-ins Triggered . | . . . . . . . . . . . . . . . . . . . . . Exploration Rate (%) 34 | 3 23 35 48 13 61 62 13 90 27 68 11 6 74 14 16 19 19 12 91 12 Regions Visited 20 Branch Regions 6 Pre-discovered Areas . | . . . . . . . . . . . . . . . . . . . . . Known Exits Taken 5 | . . . . . . . 1 . . . . . . . 1 1 1 1 . . Unknown Exits Taken 11 | 1 1 1 1 1 1 1 . . 1 1 1 . . 1 . . . . . . Scrap Searched 4 | . . 1 . . . 2 . . . 1 . . . . . . . . . . Spaces Dug 52 | . . . . . . . 2 1 . . . . . . . 25 9 9 . 6 Terrain Destroyed 187 | . 1 . 77 . . . 2 51 . . . . . . 7 25 9 9 . 6 Melee 52 | . . . . . . . 2 1 . . . . . . . 25 9 9 . 6 Projectile 8 | . . . 1 . . . . . . . . . . . 7 . . . . . AOE 127 | . 1 . 76 . . . . 50 . . . . . . . . . . . . Terrain Rammed 1 | . . . . . . . . 1 . . . . . . . . . . . . Walls Destroyed 1 | . . . . . . . . 1 . . . . . . . . . . . . Machines Disabled . | . . . . . . . . . . . . . . . . . . . . . Actions | -11 -10 -10 -9 -9 -9 -8 -8 -8 -7 -7 -7 -6 -6 -6 -5 -4 -3 -2 -2 -1 --------- Run | Yrd Mat Min Mat Min Exi Min Mat Gar Fac Low Low Fac Was Fac Fac Fac Res Res DSF Acc Total 10076 | 73 195 90 789 67 242 344 136 1459 1287 399 57 209 110 640 802 1025 589 766 92 705 Wait 1390 | . 1 . 28 . . 6 38 53 79 4 . 81 . 58 35 234 76 346 . 351 Move 7672 | 56 135 85 641 59 233 298 86 1201 1085 370 57 123 110 510 720 647 483 363 84 326 Hop 19 | . 3 3 1 . . . . . . . . . . . 7 . 1 . . 4 Pick Up 76 | 6 9 1 9 . 2 . 1 19 9 . . 3 . 3 4 3 2 3 1 1 Fast Attach 124 | 5 10 . 7 1 . 5 4 16 13 . . . . 13 15 17 6 10 . 2 Attach 26 | 2 2 1 3 . . 2 . 1 2 1 . 1 . . 3 3 . 3 . 2 Detach 19 | . . . 2 . . 1 . 3 . . . . . . 4 3 1 4 . 1 Swap 39 | . . . 7 2 1 4 1 14 7 1 . . . . . . . 1 . 1 Drop 100 | . 3 . 11 2 6 4 1 32 10 1 . . . 3 7 9 2 8 1 . Fire 305 | 3 30 . 70 . . 14 . 88 70 21 . . . . 7 2 . . . . Melee 175 | . . . 9 3 . 6 5 15 12 1 . 1 . 23 . 38 18 28 . 16 Ram 1 | . . . . . . . . 1 . . . . . . . . . . . . Kick 4 | . . . . . . 4 . . . . . . . . . . . . . . Crush 4 | 1 2 . 1 . . . . . . . . . . . . . . . . . Escape Stasis 121 | . . . . . . . . 16 . . . . . 30 . 69 . . 6 . Rewire 1 | . . . . . . . . . . . . . . . . . . . . 1 Trap . | . . . . . . . . . . . . . . . . . . . . . Miscellaneous . | . . . . . . . . . . . . . . . . . . . . . Route ------- -11/Scrapyard -10/Materials (discovered 2 exits: [*Min x2]) -10/Mines -9/Materials (discovered 4 exits: *Mat / *Min x2 / [*Sto]) -9/Mines (discovered 2 exits: Mat / *Exi) -9/Exiles -8/Mines -8/Materials -8/Garrison (discovered 3 exits: *Fac x3) -7/Factory -7/Lower Caves -7/Lower Caves -6/Factory -6/Waste -6/Factory -5/Factory -4/Factory (discovered 6 exits: *Res x4 / Upp x2) -3/Research (discovered 3 exits: *Res x3) -2/Research -2/DSF -1/Access To Epsilon Eridani History --------- Turn | Location | Event 7 | -11/Scrapyard | Discovered new exit (range 15) 112 | -11/Scrapyard | Entered Materials 115 | -10/Materials | Discovered new exit (range 7) 308 | -10/Materials | Build established: Mutant 329 | -10/Materials | Core integrity fell below 50% 357 | -10/Materials | Lost 5 parts (1p2n1u1w) 383 | -10/Materials | Discovered new exit (range 7) 385 | -10/Materials | Entered Mines 412 | -10/Mines | Discovered new exit (range 6) 415 | -10/Mines | Found a hidden stash of uninstalled traps 421 | -10/Mines | Entered Materials 421 | -9/Materials | Evolved 2 slots: Propulsion x1, Utility x1 422 | -9/Materials | Discovered new exit (range 7) 778 | -9/Materials | Lost 3 parts (1p1n1w) 1030 | -9/Materials | Discovered new exit (range 5) 1229 | -9/Materials | Discovered new exit (range 15) 1639 | -9/Materials | Discovered new exit (range 8) 1668 | -9/Materials | Entered Mines 1674 | -9/Mines | Discovered new exit (range 16) 1733 | -9/Mines | Found a damaged Exp. Sensor Array with a note attached 1737 | -9/Mines | Found Prototype Device 1737 | -9/Mines | Identified Exp. Sensor Array 1769 | -9/Mines | Deemed a non-threat by the Exiles lab entrance 1769 | -9/Mines | Discovered new exit (range 5) 1773 | -9/Mines | Entered Exiles 1802 | -9/Exiles | Met 8R-AWN 1823 | -9/Exiles | Met EX-HEX 1855 | -9/Exiles | Met EX-BIN 1874 | -9/Exiles | Aligned with FarCom system 1875 | -9/Exiles | Given EX-Vault access code 1905 | -9/Exiles | Opened EX-Vault 1915 | -9/Exiles | Found XL Autogun Array 1945 | -9/Exiles | Warned to stay clear of 0b10 Research branches 1978 | -9/Exiles | Met EX-DEC 2043 | -9/Exiles | Discovered new exit (range 11) 2059 | -9/Exiles | Left Exiles lab with XL Autogun Array 2059 | -9/Exiles | Entered Mines 2064 | -8/Mines | Core integrity fell below 50% 2227 | -8/Mines | Core integrity fell below 20% 2248 | -8/Mines | System corruption reached 10% 2268 | -8/Mines | Lost 6 parts (3n1u2w) 2513 | -8/Mines | Discovered new exit (range 8) 2522 | -8/Mines | Entered Materials 2522 | -8/Materials | Evolved 2 slots: Weapon x2 2710 | -8/Materials | Identified exit to Garrison 2711 | -8/Materials | Entered Garrison 2817 | -8/Garrison | Triggered checkpoint 2940 | -8/Garrison | Garrison Relay disabled 3039 | -8/Garrison | Triggered checkpoint 3066 | -8/Garrison | Garrison Relay disabled 3170 | -8/Garrison | Spotted B-75 Beast 3170 | -8/Garrison | Spotted B-75 Beast 3405 | -8/Garrison | Discovered new exit (range 10) 3424 | -8/Garrison | Destroyed B-75 Beast 3469 | -8/Garrison | Triggered checkpoint 3507 | -8/Garrison | Garrison Relay disabled 3577 | -8/Garrison | Phase Generator disabled 3589 | -8/Garrison | Garrison Relay disabled 3655 | -8/Garrison | Build established: Scavenger-Skirmisher 3794 | -8/Garrison | Destroyed B-75 Beast 3925 | -8/Garrison | Triggered checkpoint 3980 | -8/Garrison | Discovered new exit (range 14) 4029 | -8/Garrison | Triggered checkpoint 4119 | -8/Garrison | Build established: Scavenger-Tank 4183 | -8/Garrison | Garrison Relay disabled 4392 | -8/Garrison | Discovered new exit (range 11) 4439 | -8/Garrison | Triggered checkpoint 4444 | -8/Garrison | Garrison Relay disabled 4757 | -8/Garrison | Installed Relay Interface Framework 4817 | -8/Garrison | Entered Factory 4817 | -7/Factory | Evolved 2 slots: Utility x2 5143 | -7/Factory | Found Prototype Launcher 5143 | -7/Factory | Identified Rocket Array 5547 | -7/Factory | Repaired Sml. Storage Unit 5617 | -7/Factory | First assault squad dispatched 5821 | -7/Factory | Central database locked down 6779 | -7/Factory | Discovered new exit (range 8) 6794 | -7/Factory | Build established: Gunner 6805 | -7/Factory | Entered Lower Caves 7377 | -7/Lower Caves | Build established: Mutant 7411 | -7/Lower Caves | Discovered new exit (range 10) 7425 | -7/Lower Caves | Entered another Lower Caves area 7493 | -7/Lower Caves | Spotted B-75 Beast 7500 | -7/Lower Caves | Discovered new exit (range 10) 7515 | -7/Lower Caves | Entered Factory 7515 | -6/Factory | Evolved 2 slots: Propulsion x1, Utility x1 7729 | -6/Factory | Fabricated A-02 Transporter (x1) 7795 | -6/Factory | Sucked down chute 7795 | -6/Factory | Entered Waste 7805 | -6/Waste | 1 allies followed down the chute 7810 | -6/Waste | EMP discharged 7865 | -6/Waste | Spotted C-40 Crusher 7865 | -6/Waste | Spotted C-40 Crusher 7866 | -6/Waste | Spotted C-40 Crusher 7871 | -6/Waste | Crushed by Compactor (1 part destroyed, 2 dropped) 7874 | -6/Waste | Crushed by Compactor (1 part destroyed, 1 dropped) 7876 | -6/Waste | Crushed by Compactor (1 part destroyed, 2 dropped) 7877 | -6/Waste | Crushed by Compactor (1 part destroyed, 2 dropped) 7885 | -6/Waste | Spotted C-40 Crusher 7887 | -6/Waste | Spotted C-40 Crusher 7889 | -6/Waste | Spotted C-40 Crusher 7902 | -6/Waste | Discovered new exit (range 11) 7907 | -6/Waste | Entered Factory 7908 | -6/Factory | Lost 4 parts (1n3u) 8299 | -6/Factory | Lost 4 allies 8470 | -6/Factory | Build established: Gladiator 8618 | -6/Factory | Core integrity fell below 50% 8641 | -6/Factory | Discovered new exit (range 15) 8644 | -6/Factory | Core integrity fell below 20% 8651 | -6/Factory | Entered another Factory area 8651 | -5/Factory | Evolved 2 slots: Utility x2 8665 | -5/Factory | Lost 10 parts (3n3u4w) 8944 | -5/Factory | Lost 3 parts (1p2n) 9028 | -5/Factory | Discovered new exit (range 11) 9031 | -5/Factory | Identified exit to Factory 9031 | -5/Factory | Entered another Factory area 9031 | -4/Factory | Evolved 2 slots: Power x1, Propulsion x1 9115 | -4/Factory | Fabricated Enh. Nova Cannon (x2) 9310 | -4/Factory | Build established: Hacker-Mutant 9359 | -4/Factory | Identified exit to Research 9521 | -4/Factory | Identified exit to Upper Caves 9695 | -4/Factory | Entered Research 9695 | -3/Research | Evolved 2 slots: Utility x2 9748 | -3/Research | Found Prototype Processor 9748 | -3/Research | Identified Spectral Analyzer 9777 | -3/Research | Found Prototype Launcher 9777 | -3/Research | Identified Com. Tesla Bomb Launcher 9779 | -3/Research | Found Spectral Analyzer 9852 | -3/Research | Identified exit to Research 9930 | -3/Research | Build established: Hacker-Sprinter 9974 | -3/Research | Entered another Research area 9974 | -2/Research | Evolved 2 slots: Propulsion x1, Utility x1 10067 | -2/Research | Repaired Plasma Sword 10131 | -2/Research | Repaired Field Propulsion Array+ 10146 | -2/Research | Spotted B-90 Cyclops 10379 | -2/Research | Lost 3 parts (2n1u) 10483 | -2/Research | Repaired Microactuators 10526 | -2/Research | Identified exit to DSF 10527 | -2/Research | Entered DSF 10550 | -2/DSF | Additional patrols routed to DSF 10560 | -2/DSF | Discovered new exit (range 17) 10566 | -2/DSF | Identified exit to Access 10566 | -2/DSF | Entered Access 10566 | -1/Access | Evolved 2 slots: Propulsion x2 10581 | -1/Access | Identified exit to Surface 11065 | *** | Escaped! Last Messages --------------- 10927_ W-44 Eye Lgt. Antimatter Reactor severed. 10949_ ALERT: Potential suspicious activity detected, Programmers report to Access Zone 1V. 11007_ K-01 Serf cleans the Spectral Interrupter. 11040_ W-44 Eye sends out distress signal. 11041_ Signal Shield disabled. 11045_ U-05 Engineer destroyed. 11048_ K-01 Serf collects debris. 11049_ Detecting nearby Garrison Access. 11054_ Connecting with Garrison Access... >>Seal Access door sealed. 11055_ Connecting with Terminal... >>Open(Door) Sealed Barrier opened. 11063_ The Access Shell folds into the floor. [Achievement: 20k Club] [Achievement: Epsilon Run] Map ----- +----------------------------------------------------+ | ?????????????????????????????????????????????????? | | ?????????????????????????????????????????????????? | | ?????????????????????????????????????????????????? | | ?????????????????????????????????????????????????? | | ?????????????????????????????????????????????????? | | ?????????????????????????????????????????????????? | | ??????????? ????????????????????????????????????? | | ??????????? ????????????????????????????????????? | | ??????????? ????????????????????????????????????? | | ??????????? #???????????????????????????????????? | | ??????????? #???????????????????????????????????? | | ??????????? #???????????????????????????????????? | | ??????????# #???????????????????????????????????? | | ??????????+ #???????????????????????????????????? | | ??????????# #???????BB????BB????????????????????? | | ??????????# #???????BB????BB????????????????????? | | ??????????# #???????????????????????????????????? | | ??????????# #???????????????????????????????????? | | ??????????# #???????????????????????????????????? | | ??????????# #???????????????????????????????????? | | ??????????# #?????#""""""""""#??????????????????? | | ??????????# #?????# #??????????????????? | | ??????????# #?????# #??????????????????? | | ########### #?????# #??????????????????? | | #?????# "" #??????????????????? | | ? #?????# "@ #??????????????????? | | ???# #?????# #??????????????????? | | ???# " ###???# #??????????????????? | | ???# """ ""#???# #??????????????????? | | ???# G ""#??## ##?????????????????? | | ???# """ ""#??# #?????????????????? | | ???# " T#??##"" ##?????????????????? | | ???# ""#???#"" #??????????????????? | | ???# ""#???#"" #??????????????????? | | ???# ""#???#T #??????????????????? | | ???# ###???#"" #??????????????????? | | ???# #?????#"" #??????????????????? | | ???# #######"" ####???????????????? | | ???# p ????? | | ???# p ????? | | ???######## ######################+#######??????? | | ??????????# #???????????????????Y???????????????? | | ??????????# #???????????????????????????????????? | | ########### #???????????????????????????????????? | | #???????????????????????????????????? | | #???????????????????????????????????? | | #???????????????????????????????????? | | #???????????????????????????????????? | | ####### #???????????????????????????????????? | | ???????# #?????????###???????????????????????? | +----------------------------------------------------+ Best States ------------- Heat Dissipation 52 Energy Generation 52 Energy Capacity 365 Matter Stores 300 Matter Capacity 300 Sight Range 24 Robot Scan Range 20 Terrain Scan Range 16 Terrain Scan Density 10 Jamming Range 14 Power Amplification 40 EM Shielding 2 Armor Coverage 450 Propulsion Shielding 66 Weapon Cycling 30 Melee Speed Boost 40 Evasion (%) 75 Melee Accuracy 5 Core Analysis 6 Recoil Reduction 3 Offensive Hacking 40 Defensive Hacking 14 Relay Coupler Types 1 Relay Coupler Value 41 Authchip Count 2 Item Schematics ----------------- Sml. Storage Unit | -4/Factory | Hacked Robot Schematics ------------------ None Fabricated ------------ A-02 Transporter | x1 | -6/Factory | Preloaded Enh. Nova Cannon | x2 | -4/Factory | Preloaded Repaired ---------- Sml. Storage Unit | 18% | -7/Factory Plasma Sword | 64% | -2/Research Field Propulsion Array | 28% | -2/Research Microactuators | 27% | -2/Research Studied --------- Great Maul | -8/Materials | Hacked Powered Hammer | -7/Factory | Hacked Remote Datajack | -7/Factory | Hacked Adv. Treads | -7/Factory | Hacked Field Propulsion Array | -4/Factory | Hacked VTOL Module | -4/Factory | Hacked Q-thruster | -3/Research | Hacked Alien Tech Used ----------------- None Achievements -------------- 20k Club Epsilon Run Let Me Out Of Here Origins Streaker Watch This! Challenges ------------ None Game ------ Seed RiotSalvageTorch Manual? 0 Play Time 01:26:09 Cumulative 83.7 hours Start 2026.02.19 @ 19:00:53 End 2026.02.19 @ 20:26:24 Sessions 1 Manual Loads 0 Difficulty Rogue Special Mode None Game No. 137 Rogue 137 Adventurer 0 Explorer 0 Win Type 0 Total 1 Types 1/0/0/0/0/0/0/0/0/0 Lore% 38 Gallery% 46 Achievement% 32 Wizard Run 0 Options --------- Layout 1 ASCII 0 Keyboard 1 Movement Arrows Keybinds 0 Fullscreen 1 Font 24/Smallcaps Map View 50x35 Zoom Use 0% Tactical HUD 1 Map Filters NONE Filters NONE Steam 1 RUN: 95898350-838b-473c-8aa6-33dd45799366